[Event "Chessable Masters - Torneo preliminare"]
[White "Narayanan, Srinath"]
[Black "Iturrizaga Bonelli, Eduardo"]
[WhiteFideId "5018420"]
[BlackFideId "3901211"]
[WhiteElo "2482"]
[BlackElo "2654"]
[Result "0-1"]
[Round "5"]
[TimeControl "600+2"]
[Date "2023.03.13"]
[WhiteClock "0:00:04"]
[BlackClock "0:01:44"]

1. d4 {[%clk 0:10:01]}  Nf6 {[%clk 0:10:00]} 2. c4 {[%clk 0:10:02]}  e6 {[%clk 0:10:02]} 3. Nf3 {[%clk 0:10:01]}  b6 {[%clk 0:10:00]} 4. g3 {[%clk 0:10:00]}  Bb7 {[%clk 0:09:52]} 5. Bg2 {[%clk 0:10:01]}  c5 {[%clk 0:09:49]} 6. d5 {[%clk 0:09:39]}  exd5 {[%clk 0:09:51]} 7. Nh4 {[%clk 0:09:40]}  g6 {[%clk 0:09:49]} 8. cxd5 {[%clk 0:09:40]}  Bg7 {[%clk 0:09:48]} 9. O-O {[%clk 0:09:36]}  O-O {[%clk 0:09:49]} 10. Nc3 {[%clk 0:09:36]}  d6 {[%clk 0:09:49]} 11. e4 {[%clk 0:09:29]}  Na6 {[%clk 0:09:45]} 12. Re1 {[%clk 0:09:07]}  Nd7 {[%clk 0:09:42]} 13. f4 {[%clk 0:08:54]}  Re8 {[%clk 0:09:40]} 14. Be3 {[%clk 0:08:43]}  Nc7 {[%clk 0:09:35]} 15. Qd2 {[%clk 0:08:00]}  b5 {[%clk 0:08:49]} 16. e5 {[%clk 0:07:35]}  Nb6 {[%clk 0:08:48]} 17. exd6 {[%clk 0:06:33]}  Qxd6 {[%clk 0:08:48]} 18. Ne4 {[%clk 0:06:33]}  Rxe4 {[%clk 0:08:47]} 19. Bxe4 {[%clk 0:06:35]}  Nc4 {[%clk 0:08:44]} 20. Qf2 {[%clk 0:06:00]}  Nxe3 {[%clk 0:08:35]} 21. Rxe3 {[%clk 0:06:02]}  Bd4 {[%clk 0:08:36]} 22. Nf3 {[%clk 0:05:52]}  Bxe3 {[%clk 0:08:04]} 23. Qxe3 {[%clk 0:05:54]}  Re8 {[%clk 0:08:05]} 24. Ne5 {[%clk 0:04:08]}  f6 {[%clk 0:07:53]} 25. Nd3 {[%clk 0:04:08]}  Na6 {[%clk 0:06:32]} 26. b4 {[%clk 0:03:25]}  c4 {[%clk 0:04:04]} 27. Nc5 {[%clk 0:03:20]}  Nxc5 {[%clk 0:04:01]} 28. bxc5 {[%clk 0:03:22]}  Qe7 {[%clk 0:04:02]} 29. c6 {[%clk 0:02:30]}  Bc8 {[%clk 0:03:31]} 30. Re1 {[%clk 0:02:07]}  f5 {[%clk 0:02:49]} 31. d6 {[%clk 0:02:02]}  Qxe4 {[%clk 0:02:49]} 32. d7 {[%clk 0:01:55]}  Rd8 {[%clk 0:01:55]} 33. Qxe4 {[%clk 0:00:43]}  fxe4 {[%clk 0:01:57]} 34. Rxe4 {[%clk 0:00:44]}  Bxd7 {[%clk 0:01:53]} 35. Rd4 {[%clk 0:00:46]}  Kf7 {[%clk 0:01:46]} 36. c7 {[%clk 0:00:46]}  Rc8 {[%clk 0:01:48]} 37. Rxd7+ {[%clk 0:00:47]}  Ke6 {[%clk 0:01:49]} 38. Rd1 {[%clk 0:00:18]}  Rxc7 {[%clk 0:01:49]} 39. Kf2 {[%clk 0:00:20]}  a5 {[%clk 0:01:40]} 40. Ke3 {[%clk 0:00:21]}  b4 {[%clk 0:01:41]} 41. g4 {[%clk 0:00:12]}  a4 {[%clk 0:01:41]} 42. Rf1 {[%clk 0:00:09]}  b3 {[%clk 0:01:41]} 43. f5+ {[%clk 0:00:10]}  gxf5 {[%clk 0:01:43]} 44. gxf5+ {[%clk 0:00:12]}  Kf6 {[%clk 0:01:44]} 45. axb3 {[%clk 0:00:04]}  cxb3 {[%clk 0:01:44]} 46. Kd2 {[%clk 0:00:04]} 0-1


[Site "Internet"]

[Event "Chessable Masters - Torneo preliminare"]
[White "Pap, Gyula"]
[Black "Andreikin, Dmitry"]
[WhiteFideId "725323"]
[BlackFideId "4158814"]
[WhiteElo "2563"]
[BlackElo "2628"]
[Result "0-1"]
[Round "5"]
[TimeControl "600+2"]
[Date "2023.03.13"]
[WhiteClock "0:00:03"]
[BlackClock "0:06:07"]

1. d4 {[%clk 0:10:01]}  d5 {[%clk 0:09:33]} 2. c3 {[%clk 0:09:11]}  Bf5 {[%clk 0:09:27]} 3. Qb3 {[%clk 0:09:04]}  Nf6 {[%clk 0:09:27]} 4. Bf4 {[%clk 0:08:56]}  Nbd7 {[%clk 0:09:28]} 5. Nf3 {[%clk 0:08:38]}  e6 {[%clk 0:09:27]} 6. e3 {[%clk 0:08:02]}  Bd6 {[%clk 0:09:26]} 7. Bg3 {[%clk 0:07:55]}  O-O {[%clk 0:09:25]} 8. Nbd2 {[%clk 0:07:50]}  Bxg3 {[%clk 0:09:21]} 9. hxg3 {[%clk 0:07:51]}  c5 {[%clk 0:09:22]} 10. a4 {[%clk 0:07:43]}  c4 {[%clk 0:09:19]} 11. Qa3 {[%clk 0:07:36]}  a6 {[%clk 0:09:19]} 12. a5 {[%clk 0:06:43]}  b5 {[%clk 0:09:17]} 13. axb6 {[%clk 0:06:44]}  Qxb6 {[%clk 0:09:18]} 14. Be2 {[%clk 0:05:55]}  Rfb8 {[%clk 0:09:19]} 15. Ra2 {[%clk 0:05:53]}  a5 {[%clk 0:09:16]} 16. O-O {[%clk 0:05:52]}  a4 {[%clk 0:09:13]} 17. Nh4 {[%clk 0:05:19]}  Ne4 {[%clk 0:08:20]} 18. Nxe4 {[%clk 0:04:22]}  Bxe4 {[%clk 0:08:22]} 19. Rfa1 {[%clk 0:04:23]}  Bc2 {[%clk 0:08:10]} 20. Rc1 {[%clk 0:02:49]}  Qb3 {[%clk 0:08:10]} 21. Nf3 {[%clk 0:02:18]}  Qxa3 {[%clk 0:07:44]} 22. bxa3 {[%clk 0:02:17]}  Bg6 {[%clk 0:07:46]} 23. Bd1 {[%clk 0:02:03]}  Rb3 {[%clk 0:07:46]} 24. Nd2 {[%clk 0:01:54]}  Nb6 {[%clk 0:07:47]} 25. f3 {[%clk 0:01:37]}  Bd3 {[%clk 0:07:48]} 26. g4 {[%clk 0:01:38]}  h6 {[%clk 0:07:47]} 27. Kf2 {[%clk 0:01:38]}  Ra5 {[%clk 0:07:48]} 28. e4 {[%clk 0:01:22]}  dxe4 {[%clk 0:07:22]} 29. fxe4 {[%clk 0:01:20]}  f5 {[%clk 0:07:24]} 30. gxf5 {[%clk 0:01:13]}  exf5 {[%clk 0:07:25]} 31. Bf3 {[%clk 0:00:54]}  fxe4 {[%clk 0:07:14]} 32. Bxe4 {[%clk 0:00:49]}  Bxe4 {[%clk 0:06:56]} 33. Nxe4 {[%clk 0:00:51]}  Rf5+ {[%clk 0:06:57]} 34. Kg1 {[%clk 0:00:33]}  Rfb5 {[%clk 0:06:51]} 35. Nc5 {[%clk 0:00:23]}  Nd5 {[%clk 0:06:52]} 36. Nxa4 {[%clk 0:00:20]}  Ra5 {[%clk 0:06:51]} 37. Nc5 {[%clk 0:00:11]}  Raxa3 {[%clk 0:06:53]} 38. Rxa3 {[%clk 0:00:10]}  Rxa3 {[%clk 0:06:55]} 39. Ne4 {[%clk 0:00:09]}  Ra2 {[%clk 0:06:52]} 40. Re1 {[%clk 0:00:03]}  Rc2 {[%clk 0:06:49]} 41. Kh2 {[%clk 0:00:04]}  g5 {[%clk 0:06:37]} 42. Kg1 {[%clk 0:00:05]}  Kg7 {[%clk 0:06:38]} 43. Kh2 {[%clk 0:00:05]}  Kg6 {[%clk 0:06:39]} 44. Kg1 {[%clk 0:00:05]}  h5 {[%clk 0:06:34]} 45. Ra1 {[%clk 0:00:06]}  Ne3 {[%clk 0:06:05]} 46. Ra6+ {[%clk 0:00:02]}  Kf5 {[%clk 0:06:06]} 47. Nd6+ {[%clk 0:00:03]}  Kg4 {[%clk 0:06:07]} 0-1


[Site "Internet"]

[Event "Chessable Masters - Torneo preliminare"]
[White "Wagner, Dennis"]
[Black "Sadhwani, Raunak"]
[WhiteFideId "24650684"]
[BlackFideId "35093487"]
[WhiteElo "2456"]
[BlackElo "2550"]
[Result "0-1"]
[Round "5"]
[TimeControl "600+2"]
[Date "2023.03.13"]
[WhiteClock "0:00:04"]
[BlackClock "0:01:02"]

1. d4 {[%clk 0:10:01]}  d6 {[%clk 0:09:59]} 2. e4 {[%clk 0:09:54]}  g6 {[%clk 0:10:00]} 3. Nc3 {[%clk 0:09:27]}  Bg7 {[%clk 0:10:01]} 4. Be3 {[%clk 0:09:27]}  c6 {[%clk 0:10:01]} 5. Bd3 {[%clk 0:09:06]}  e5 {[%clk 0:09:51]} 6. Nf3 {[%clk 0:09:05]}  Bg4 {[%clk 0:09:50]} 7. dxe5 {[%clk 0:09:00]}  dxe5 {[%clk 0:09:52]} 8. h3 {[%clk 0:08:57]}  Bxf3 {[%clk 0:09:52]} 9. Qxf3 {[%clk 0:08:59]}  Nd7 {[%clk 0:09:53]} 10. O-O-O {[%clk 0:08:56]}  Qe7 {[%clk 0:09:54]} 11. Bc4 {[%clk 0:05:34]}  Ngf6 {[%clk 0:09:53]} 12. g4 {[%clk 0:05:12]}  b5 {[%clk 0:09:36]} 13. Bb3 {[%clk 0:04:50]}  O-O {[%clk 0:09:17]} 14. h4 {[%clk 0:04:33]}  a5 {[%clk 0:09:17]} 15. a4 {[%clk 0:04:34]}  Nc5 {[%clk 0:08:13]} 16. Bxc5 {[%clk 0:04:03]}  Qxc5 {[%clk 0:08:15]} 17. h5 {[%clk 0:03:49]}  bxa4 {[%clk 0:07:47]} 18. Nxa4 {[%clk 0:03:47]}  Qb4 {[%clk 0:07:48]} 19. hxg6 {[%clk 0:03:07]}  hxg6 {[%clk 0:07:50]} 20. Rde1 {[%clk 0:02:59]}  Bh6+ {[%clk 0:07:43]} 21. Kb1 {[%clk 0:02:59]}  Bg5 {[%clk 0:07:42]} 22. Qg3 {[%clk 0:02:23]}  Rae8 {[%clk 0:07:07]} 23. Qd3 {[%clk 0:02:03]}  Rd8 {[%clk 0:06:42]} 24. Qg3 {[%clk 0:02:00]}  Rfe8 {[%clk 0:06:30]} 25. f4 {[%clk 0:01:40]}  exf4 {[%clk 0:06:12]} 26. Qh3 {[%clk 0:01:20]}  Kf8 {[%clk 0:04:39]} 27. e5 {[%clk 0:01:15]}  Ne4 {[%clk 0:02:36]} 28. e6 {[%clk 0:00:52]}  Rxe6 {[%clk 0:02:27]} 29. Bxe6 {[%clk 0:00:43]}  Qxa4 {[%clk 0:02:28]} 30. Ba2 {[%clk 0:00:20]}  Bf6 {[%clk 0:02:10]} 31. Qh7 {[%clk 0:00:05]}  Bg7 {[%clk 0:01:38]} 32. Rd1 {[%clk 0:00:05]}  Nd2+ {[%clk 0:01:12]} 33. Ka1 {[%clk 0:00:06]}  Qxc2 {[%clk 0:01:11]} 34. Rb1 {[%clk 0:00:03]}  Nb3+ {[%clk 0:00:57]} 35. Bxb3 {[%clk 0:00:03]}  Qxb3 {[%clk 0:00:59]} 36. Rh3 {[%clk 0:00:03]}  Qa4+ {[%clk 0:01:00]} 37. Ra3 {[%clk 0:00:04]}  Qxa3# {[%clk 0:01:02]} 0-1


[Site "Internet"]

[Event "Chessable Masters - Torneo preliminare"]
[White "Esipenko, Andrey"]
[Black "Perez Ponsa, Federico"]
[WhiteFideId "24175439"]
[BlackFideId "117927"]
[WhiteElo "2682"]
[BlackElo "2586"]
[Result "0-1"]
[Round "5"]
[TimeControl "600+2"]
[Date "2023.03.13"]
[WhiteClock "0:00:02"]
[BlackClock "0:00:14"]

1. d4 {[%clk 0:09:55]}  Nf6 {[%clk 0:09:50]} 2. c4 {[%clk 0:09:51]}  g6 {[%clk 0:09:48]} 3. Nc3 {[%clk 0:09:49]}  Bg7 {[%clk 0:09:49]} 4. e4 {[%clk 0:09:49]}  d6 {[%clk 0:09:51]} 5. Nf3 {[%clk 0:09:50]}  O-O {[%clk 0:09:53]} 6. Be2 {[%clk 0:09:51]}  e5 {[%clk 0:09:54]} 7. O-O {[%clk 0:09:52]}  Nc6 {[%clk 0:09:55]} 8. d5 {[%clk 0:09:54]}  Ne7 {[%clk 0:09:57]} 9. b4 {[%clk 0:09:56]}  a5 {[%clk 0:09:58]} 10. bxa5 {[%clk 0:09:57]}  Rxa5 {[%clk 0:10:00]} 11. a4 {[%clk 0:09:59]}  Ra8 {[%clk 0:09:59]} 12. Ra3 {[%clk 0:09:58]}  Nd7 {[%clk 0:09:49]} 13. Ne1 {[%clk 0:09:37]}  f5 {[%clk 0:09:31]} 14. Nd3 {[%clk 0:09:36]}  Nf6 {[%clk 0:08:43]} 15. f3 {[%clk 0:09:28]}  f4 {[%clk 0:08:42]} 16. Rb3 {[%clk 0:09:11]}  g5 {[%clk 0:08:33]} 17. c5 {[%clk 0:09:07]}  Ng6 {[%clk 0:08:26]} 18. Ba3 {[%clk 0:09:04]}  Rf7 {[%clk 0:08:27]} 19. cxd6 {[%clk 0:08:47]}  cxd6 {[%clk 0:08:27]} 20. Nb2 {[%clk 0:08:41]}  h5 {[%clk 0:08:11]} 21. Nc4 {[%clk 0:08:42]}  Ra6 {[%clk 0:08:12]} 22. Nb5 {[%clk 0:08:24]}  Bf8 {[%clk 0:08:06]} 23. Rc3 {[%clk 0:07:23]}  Ne8 {[%clk 0:07:36]} 24. Kh1 {[%clk 0:07:23]}  Rh7 {[%clk 0:07:00]} 25. Bb4 {[%clk 0:06:42]}  Bd7 {[%clk 0:06:22]} 26. Nb2 {[%clk 0:06:18]}  g4 {[%clk 0:05:48]} 27. fxg4 {[%clk 0:05:58]}  Nf6 {[%clk 0:05:47]} 28. gxh5 {[%clk 0:05:54]}  Nh4 {[%clk 0:05:16]} 29. Rc4 {[%clk 0:04:54]}  Nxh5 {[%clk 0:04:49]} 30. Bxh5 {[%clk 0:04:05]}  Qg5 {[%clk 0:04:49]} 31. Bf3 {[%clk 0:03:52]}  Qg3 {[%clk 0:04:44]} 32. Kg1 {[%clk 0:03:05]}  Qxh2+ {[%clk 0:04:03]} 33. Kf2 {[%clk 0:03:06]}  Nxf3 {[%clk 0:03:34]} 34. Qxf3 {[%clk 0:02:13]}  Rh3 {[%clk 0:03:34]} 35. Qd1 {[%clk 0:01:46]}  Be7 {[%clk 0:02:51]} 36. Rg1 {[%clk 0:01:33]}  f3 {[%clk 0:02:00]} 37. Rc2 {[%clk 0:01:10]}  Rg3 {[%clk 0:01:32]} 38. Kf1 {[%clk 0:00:27]}  Bh3 {[%clk 0:00:50]} 39. Qc1 {[%clk 0:00:02]}  Ra8 {[%clk 0:00:33]} 40. Bxd6 {[%clk 0:00:04]}  Bg5 {[%clk 0:00:23]} 41. Qd1 {[%clk 0:00:02]}  Rxg2 {[%clk 0:00:15]} 42. Rcxg2 {[%clk 0:00:02]}  Bxg2+ {[%clk 0:00:14]} 0-1


[Site "Internet"]

[Event "Chessable Masters - Torneo preliminare"]
[White "Ju, Wenjun"]
[Black "Kravtsiv, Martyn"]
[WhiteFideId "8603006"]
[BlackFideId "14113147"]
[WhiteElo "2598"]
[BlackElo "2675"]
[Result "0-1"]
[Round "5"]
[TimeControl "600+2"]
[Date "2023.03.13"]
[WhiteClock "0:00:04"]
[BlackClock "0:00:19"]

1. d4 {[%clk 0:10:01]}  Nf6 {[%clk 0:09:58]} 2. c4 {[%clk 0:10:02]}  e6 {[%clk 0:09:59]} 3. Nf3 {[%clk 0:10:04]}  d5 {[%clk 0:09:59]} 4. g3 {[%clk 0:10:04]}  Be7 {[%clk 0:09:58]} 5. Bg2 {[%clk 0:10:06]}  O-O {[%clk 0:09:59]} 6. O-O {[%clk 0:10:07]}  c6 {[%clk 0:09:57]} 7. Qc2 {[%clk 0:09:51]}  b6 {[%clk 0:09:51]} 8. Nbd2 {[%clk 0:09:41]}  Bb7 {[%clk 0:09:36]} 9. e4 {[%clk 0:09:42]}  c5 {[%clk 0:09:23]} 10. cxd5 {[%clk 0:09:06]}  exd5 {[%clk 0:09:22]} 11. e5 {[%clk 0:09:08]}  Nfd7 {[%clk 0:09:07]} 12. Rd1 {[%clk 0:08:47]}  Nc6 {[%clk 0:08:37]} 13. Qf5 {[%clk 0:08:09]}  Bc8 {[%clk 0:05:24]} 14. Qf4 {[%clk 0:07:19]}  Nb4 {[%clk 0:04:55]} 15. Nf1 {[%clk 0:06:29]}  Ba6 {[%clk 0:04:16]} 16. Qd2 {[%clk 0:05:51]}  cxd4 {[%clk 0:03:55]} 17. e6 {[%clk 0:04:45]}  fxe6 {[%clk 0:03:29]} 18. Nxd4 {[%clk 0:04:47]}  Bc5 {[%clk 0:03:27]} 19. Ne3 {[%clk 0:03:54]}  Qf6 {[%clk 0:03:21]} 20. Nb3 {[%clk 0:03:45]}  Nd3 {[%clk 0:03:01]} 21. Nxc5 {[%clk 0:03:30]}  N7xc5 {[%clk 0:02:55]} 22. f4 {[%clk 0:03:19]}  Rad8 {[%clk 0:02:24]} 23. Bf1 {[%clk 0:02:20]}  h5 {[%clk 0:01:38]} 24. Ng2 {[%clk 0:01:38]}  e5 {[%clk 0:01:08]} 25. b4 {[%clk 0:01:22]}  Ne4 {[%clk 0:01:05]} 26. Qc2 {[%clk 0:00:46]}  exf4 {[%clk 0:00:57]} 27. Bxf4 {[%clk 0:00:41]}  Nxb4 {[%clk 0:00:39]} 28. Qb3 {[%clk 0:00:18]}  Bxf1 {[%clk 0:00:38]} 29. Rxf1 {[%clk 0:00:15]}  Qd4+ {[%clk 0:00:34]} 30. Be3 {[%clk 0:00:15]}  Qc4 {[%clk 0:00:36]} 31. Rxf8+ {[%clk 0:00:14]}  Rxf8 {[%clk 0:00:36]} 32. Rd1 {[%clk 0:00:12]}  Qxb3 {[%clk 0:00:35]} 33. axb3 {[%clk 0:00:14]}  Nc3 {[%clk 0:00:36]} 34. Rd2 {[%clk 0:00:13]}  Re8 {[%clk 0:00:35]} 35. Kf1 {[%clk 0:00:10]}  Ne4 {[%clk 0:00:28]} 36. Rd1 {[%clk 0:00:06]}  Rf8+ {[%clk 0:00:25]} 37. Kg1 {[%clk 0:00:06]}  Nc3 {[%clk 0:00:23]} 38. Rd2 {[%clk 0:00:07]}  Re8 {[%clk 0:00:21]} 39. Kf1 {[%clk 0:00:08]}  Ne4 {[%clk 0:00:19]} 40. Rd1 {[%clk 0:00:08]}  g5 {[%clk 0:00:20]} 41. Rd4 {[%clk 0:00:05]}  a5 {[%clk 0:00:20]} 42. Ke2 {[%clk 0:00:05]}  Nc2 {[%clk 0:00:19]} 43. Rd3 {[%clk 0:00:04]}  d4 {[%clk 0:00:19]} 0-1


[Site "Internet"]

[Event "Chessable Masters - Torneo preliminare"]
[White "Anton Guijarro, David"]
[Black "Van Foreest, Lucas"]
[WhiteFideId "2285525"]
[BlackFideId "1039792"]
[WhiteElo "2635"]
[BlackElo "2483"]
[Result "1-0"]
[Round "5"]
[TimeControl "600+2"]
[Date "2023.03.13"]
[WhiteClock "0:01:07"]
[BlackClock "0:02:23"]

1. Nf3 {[%clk 0:09:55]}  d5 {[%clk 0:09:50]} 2. c4 {[%clk 0:09:55]}  e6 {[%clk 0:09:42]} 3. g3 {[%clk 0:09:55]}  Be7 {[%clk 0:09:41]} 4. Bg2 {[%clk 0:09:55]}  Nf6 {[%clk 0:09:42]} 5. O-O {[%clk 0:09:55]}  O-O {[%clk 0:09:43]} 6. b3 {[%clk 0:09:56]}  d4 {[%clk 0:09:44]} 7. e3 {[%clk 0:09:56]}  c5 {[%clk 0:09:46]} 8. Ne5 {[%clk 0:09:57]}  Qc7 {[%clk 0:09:47]} 9. f4 {[%clk 0:09:56]}  Nfd7 {[%clk 0:09:48]} 10. Nd3 {[%clk 0:09:54]}  Nc6 {[%clk 0:09:46]} 11. Na3 {[%clk 0:09:43]}  a6 {[%clk 0:09:46]} 12. Bb2 {[%clk 0:09:40]}  Rd8 {[%clk 0:09:46]} 13. Nc2 {[%clk 0:09:25]}  e5 {[%clk 0:09:47]} 14. Qe1 {[%clk 0:08:18]}  Bf6 {[%clk 0:09:41]} 15. g4 {[%clk 0:06:40]}  Rb8 {[%clk 0:08:31]} 16. g5 {[%clk 0:06:31]}  Be7 {[%clk 0:08:31]} 17. Bd5 {[%clk 0:05:10]}  Nf8 {[%clk 0:08:21]} 18. fxe5 {[%clk 0:04:48]}  Be6 {[%clk 0:08:16]} 19. exd4 {[%clk 0:04:30]}  cxd4 {[%clk 0:07:56]} 20. Qe4 {[%clk 0:03:58]}  Qa5 {[%clk 0:07:11]} 21. Nf4 {[%clk 0:03:40]}  Bxg5 {[%clk 0:06:28]} 22. Nxe6 {[%clk 0:03:26]}  fxe6 {[%clk 0:06:26]} 23. Bxc6 {[%clk 0:03:25]}  bxc6 {[%clk 0:06:28]} 24. Nxd4 {[%clk 0:03:02]}  Qxd2 {[%clk 0:06:25]} 25. Nxc6 {[%clk 0:03:02]}  Qxb2 {[%clk 0:06:14]} 26. Nxb8 {[%clk 0:03:03]}  Rxb8 {[%clk 0:06:10]} 27. Kh1 {[%clk 0:03:02]}  Ng6 {[%clk 0:05:53]} 28. Qg4 {[%clk 0:02:56]}  h6 {[%clk 0:05:27]} 29. Qxe6+ {[%clk 0:02:38]}  Kh7 {[%clk 0:05:28]} 30. Rad1 {[%clk 0:02:23]}  Bf4 {[%clk 0:04:44]} 31. Qh3 {[%clk 0:01:40]}  Bxe5 {[%clk 0:04:38]} 32. Rg1 {[%clk 0:01:37]}  Rf8 {[%clk 0:04:29]} 33. Rg2 {[%clk 0:01:38]}  Rf2 {[%clk 0:04:24]} 34. Rdg1 {[%clk 0:01:38]}  Qe2 {[%clk 0:03:26]} 35. Qf5 {[%clk 0:01:16]}  Rxg2 {[%clk 0:02:58]} 36. Rxg2 {[%clk 0:01:16]}  Qd1+ {[%clk 0:02:59]} 37. Rg1 {[%clk 0:01:15]}  Qd6 {[%clk 0:03:01]} 38. Qe4 {[%clk 0:01:06]}  Bxh2 {[%clk 0:02:52]} 39. c5 {[%clk 0:01:05]}  Qe5 {[%clk 0:02:19]} 40. Qxg6+ {[%clk 0:01:04]}  Kh8 {[%clk 0:02:21]} 41. Qxg7+ {[%clk 0:01:04]}  Qxg7 {[%clk 0:02:21]} 42. Rxg7 {[%clk 0:01:05]}  Kxg7 {[%clk 0:02:23]} 43. Kxh2 {[%clk 0:01:07]} 1-0


[Site "Internet"]

[Event "Chessable Masters - Torneo preliminare"]
[White "Sargissian, Gabriel"]
[Black "Lobanov, Sergei"]
[WhiteFideId "13300881"]
[BlackFideId "24183750"]
[WhiteElo "2628"]
[BlackElo "2436"]
[Result "0-1"]
[Round "5"]
[TimeControl "600+2"]
[Date "2023.03.13"]
[WhiteClock "0:04:19"]
[BlackClock "0:00:57"]

1. d4 {[%clk 0:10:01]}  Nf6 {[%clk 0:09:59]} 2. c4 {[%clk 0:10:02]}  e6 {[%clk 0:10:01]} 3. Nf3 {[%clk 0:10:02]}  d5 {[%clk 0:10:02]} 4. Nc3 {[%clk 0:09:51]}  Bb4 {[%clk 0:09:59]} 5. Qa4+ {[%clk 0:09:36]}  Nc6 {[%clk 0:09:59]} 6. e3 {[%clk 0:09:30]}  O-O {[%clk 0:09:58]} 7. Bd2 {[%clk 0:09:06]}  Re8 {[%clk 0:09:22]} 8. a3 {[%clk 0:08:47]}  Bd6 {[%clk 0:08:43]} 9. c5 {[%clk 0:08:32]}  Bf8 {[%clk 0:08:42]} 10. Bb5 {[%clk 0:08:32]}  Bd7 {[%clk 0:08:40]} 11. O-O {[%clk 0:08:32]}  Ne4 {[%clk 0:08:09]} 12. Qc2 {[%clk 0:08:16]}  Nxc3 {[%clk 0:07:03]} 13. Bxc3 {[%clk 0:08:13]}  a6 {[%clk 0:05:38]} 14. Bd3 {[%clk 0:08:11]}  g6 {[%clk 0:05:39]} 15. b4 {[%clk 0:08:09]}  b5 {[%clk 0:05:36]} 16. a4 {[%clk 0:08:05]}  Bg7 {[%clk 0:04:54]} 17. axb5 {[%clk 0:07:38]}  axb5 {[%clk 0:04:54]} 18. Qe2 {[%clk 0:07:37]}  Rb8 {[%clk 0:03:58]} 19. Ne5 {[%clk 0:06:45]}  Nxe5 {[%clk 0:03:35]} 20. dxe5 {[%clk 0:06:47]}  f6 {[%clk 0:03:27]} 21. Qb2 {[%clk 0:06:37]}  Rf8 {[%clk 0:02:53]} 22. exf6 {[%clk 0:06:28]}  Bxf6 {[%clk 0:02:53]} 23. Bxf6 {[%clk 0:06:29]}  Qxf6 {[%clk 0:02:52]} 24. Qxf6 {[%clk 0:06:30]}  Rxf6 {[%clk 0:02:53]} 25. Ra7 {[%clk 0:06:30]}  Rc8 {[%clk 0:02:53]} 26. Ra6 {[%clk 0:04:46]}  c6 {[%clk 0:02:38]} 27. e4 {[%clk 0:04:38]}  Rf7 {[%clk 0:02:05]} 28. f3 {[%clk 0:04:28]}  Kf8 {[%clk 0:02:03]} 29. Kf2 {[%clk 0:04:28]}  Ke7 {[%clk 0:02:04]} 30. Ke3 {[%clk 0:04:29]}  Rc7 {[%clk 0:01:42]} 31. Kd4 {[%clk 0:04:26]}  Kf6 {[%clk 0:01:03]} 32. f4 {[%clk 0:04:25]}  Bc8 {[%clk 0:01:00]} 33. g4 {[%clk 0:04:19]}  Bxa6 {[%clk 0:00:57]} 0-1


[Site "Internet"]

[Event "Chessable Masters - Torneo preliminare"]
[White "Harikrishna, Pentala"]
[Black "Drozdowski, Kacper"]
[WhiteFideId "5007003"]
[BlackFideId "1136720"]
[WhiteElo "2627"]
[BlackElo "2472"]
[Result "1-0"]
[Round "5"]
[TimeControl "600+2"]
[Date "2023.03.13"]
[WhiteClock "0:00:30"]
[BlackClock "0:00:16"]

1. Nf3 {[%clk 0:10:01]}  d5 {[%clk 0:10:00]} 2. d4 {[%clk 0:10:02]}  Nf6 {[%clk 0:10:01]} 3. c4 {[%clk 0:10:03]}  c6 {[%clk 0:10:02]} 4. Qc2 {[%clk 0:09:56]}  e6 {[%clk 0:09:54]} 5. g3 {[%clk 0:09:50]}  dxc4 {[%clk 0:09:50]} 6. Qxc4 {[%clk 0:09:50]}  b5 {[%clk 0:09:50]} 7. Qb3 {[%clk 0:09:40]}  Bb7 {[%clk 0:09:47]} 8. Bg2 {[%clk 0:09:39]}  Nbd7 {[%clk 0:09:47]} 9. O-O {[%clk 0:09:39]}  Be7 {[%clk 0:09:40]} 10. Nc3 {[%clk 0:09:23]}  a6 {[%clk 0:09:12]} 11. Ne5 {[%clk 0:09:22]}  Nxe5 {[%clk 0:08:44]} 12. dxe5 {[%clk 0:09:23]}  Nd7 {[%clk 0:08:44]} 13. Bf4 {[%clk 0:09:22]}  Qb6 {[%clk 0:08:15]} 14. a4 {[%clk 0:09:04]}  O-O {[%clk 0:07:27]} 15. Rfd1 {[%clk 0:08:26]}  Nc5 {[%clk 0:06:57]} 16. Qc2 {[%clk 0:08:20]}  bxa4 {[%clk 0:05:50]} 17. Be3 {[%clk 0:07:35]}  Qb3 {[%clk 0:04:28]} 18. Qxb3 {[%clk 0:05:21]}  Nxb3 {[%clk 0:04:24]} 19. Rab1 {[%clk 0:05:16]}  Rfd8 {[%clk 0:03:35]} 20. Bb6 {[%clk 0:03:32]}  Rxd1+ {[%clk 0:03:11]} 21. Rxd1 {[%clk 0:03:34]}  Bc5 {[%clk 0:02:39]} 22. Nxa4 {[%clk 0:02:45]}  Bxb6 {[%clk 0:02:29]} 23. Nxb6 {[%clk 0:02:46]}  Rb8 {[%clk 0:02:28]} 24. Be4 {[%clk 0:02:46]}  Nc5 {[%clk 0:02:15]} 25. Bf3 {[%clk 0:01:54]}  a5 {[%clk 0:02:11]} 26. Nc4 {[%clk 0:01:27]}  a4 {[%clk 0:02:00]} 27. Na5 {[%clk 0:01:26]}  g5 {[%clk 0:01:46]} 28. Rc1 {[%clk 0:00:31]}  Nd7 {[%clk 0:01:46]} 29. Nxb7 {[%clk 0:00:29]}  Rxb7 {[%clk 0:01:48]} 30. Bxc6 {[%clk 0:00:30]}  Rc7 {[%clk 0:01:44]} 31. Rc2 {[%clk 0:00:31]}  Ra7 {[%clk 0:01:28]} 32. f4 {[%clk 0:00:31]}  gxf4 {[%clk 0:01:25]} 33. gxf4 {[%clk 0:00:33]}  Nf8 {[%clk 0:01:03]} 34. Rc3 {[%clk 0:00:21]}  Ng6 {[%clk 0:01:03]} 35. e3 {[%clk 0:00:22]}  Ne7 {[%clk 0:01:03]} 36. Be4 {[%clk 0:00:22]}  h6 {[%clk 0:00:56]} 37. h4 {[%clk 0:00:22]}  Kf8 {[%clk 0:00:56]} 38. Kf2 {[%clk 0:00:23]}  Ra6 {[%clk 0:00:53]} 39. Kf3 {[%clk 0:00:22]}  Rb6 {[%clk 0:00:54]} 40. Rc4 {[%clk 0:00:23]}  Rxb2 {[%clk 0:00:52]} 41. Rxa4 {[%clk 0:00:24]}  Rb8 {[%clk 0:00:36]} 42. h5 {[%clk 0:00:22]}  Rc8 {[%clk 0:00:35]} 43. Ra7 {[%clk 0:00:22]}  Rb8 {[%clk 0:00:34]} 44. Rc7 {[%clk 0:00:18]}  Rd8 {[%clk 0:00:35]} 45. Bc6 {[%clk 0:00:17]}  Nxc6 {[%clk 0:00:28]} 46. Rxc6 {[%clk 0:00:19]}  Kg7 {[%clk 0:00:29]} 47. Rd6 {[%clk 0:00:17]}  Ra8 {[%clk 0:00:30]} 48. Rd7 {[%clk 0:00:16]}  Ra1 {[%clk 0:00:30]} 49. Rd2 {[%clk 0:00:14]}  Rh1 {[%clk 0:00:30]} 50. Kg4 {[%clk 0:00:13]}  Rg1+ {[%clk 0:00:32]} 51. Kf3 {[%clk 0:00:13]}  Rh1 {[%clk 0:00:33]} 52. Kg3 {[%clk 0:00:14]}  Rxh5 {[%clk 0:00:17]} 53. Rd1 {[%clk 0:00:15]}  Kg6 {[%clk 0:00:14]} 54. e4 {[%clk 0:00:14]}  f6 {[%clk 0:00:16]} 55. Rd6 {[%clk 0:00:15]}  Kf7 {[%clk 0:00:13]} 56. f5 {[%clk 0:00:16]}  Rg5+ {[%clk 0:00:09]} 57. Kf3 {[%clk 0:00:17]}  exf5 {[%clk 0:00:05]} 58. Rxf6+ {[%clk 0:00:18]}  Ke7 {[%clk 0:00:05]} 59. exf5 {[%clk 0:00:20]}  Rg1 {[%clk 0:00:06]} 60. Rxh6 {[%clk 0:00:18]}  Rf1+ {[%clk 0:00:07]} 61. Kg4 {[%clk 0:00:19]}  Rg1+ {[%clk 0:00:09]} 62. Kf4 {[%clk 0:00:20]}  Rf1+ {[%clk 0:00:10]} 63. Kg5 {[%clk 0:00:21]}  Rg1+ {[%clk 0:00:11]} 64. Kh5 {[%clk 0:00:23]}  Kf7 {[%clk 0:00:12]} 65. Rf6+ {[%clk 0:00:24]}  Ke7 {[%clk 0:00:13]} 66. Rg6 {[%clk 0:00:25]}  Rh1+ {[%clk 0:00:13]} 67. Kg5 {[%clk 0:00:27]}  Rg1+ {[%clk 0:00:13]} 68. Kh6 {[%clk 0:00:28]}  Re1 {[%clk 0:00:15]} 69. Kg7 {[%clk 0:00:27]}  Rxe5 {[%clk 0:00:15]} 70. f6+ {[%clk 0:00:29]}  Kd7 {[%clk 0:00:16]} 71. f7 {[%clk 0:00:30]} 1-0


[Site "Internet"]